{"text_format":"1","workbook":"xlsx","n_sheets":4,"sheets":["Table de référence","Demande participation","RGD_indemnités","Décompte"],"not_rendered":{"charts":0,"images":5,"macros":1,"external_links":0,"defined_names":2,"comments":1,"pivot_tables":0},"unopened":[],"bounds":{"document_bytes":16777216,"sheet_cells":100000,"rows_first":2000,"rows_last":500,"rows_between":2000,"halvings":0,"cell_chars":16384,"cell_head_chars":4096},"cells_cut":0,"cells_raw":0,"read":"whole","date_system":"1900"}

{"sheet":"Table de référence","index":0,"n_rows":70,"n_cols":9,"rows_kept":70,"cut":false,"hidden":true,"merged":[]}
["Table de référence "]
[]
[null,null,null,null,null,"Discipline sportive"]
[null,null,null,null,null,null,"oui"]
["Formation inexistante au Luxembourg ",null,null,null,null,null,"non "]
[null,"oui"]
[null,"non "]
[]
[]
["Niveau  ",null,null,null,null,"Spécialisation "]
[null,"LUXQF1 - Formation initiale",null,null,null,null,"Préparation motricité "]
[null,"LUXQF2 - Formation initiale",null,null,null,null,"Préparation physique"]
[null,"LUXQF3 - Formation initiale",null,null,null,null,"Fitness"]
[null,"LUXQF4 - Formation initiale",null,null,null,null,"Sport santé "]
[null,"LUXQF5 - Formation initiale",null,null,null,null,"Management "]
[null,"LUXQF6 - Formation initiale"]
[null,"LUXQF3 - Formation continue"]
[null,"LUXQF4 - Formation continue"]
[null,"LUXQF5 - Formation continue"]
[null,"LUXQF6 - Formation continue"]
[]
[]
[]
[null,null,null,null,null,"Niveau de certification candidat"]
["Type de formation ",null,null,null,null,null,"Aucun brevet"]
[null,"Formation initiale ",null,null,null,null,"Brevet ou homologation LUXQF1"]
[null,"Formation continue ",null,null,null,null,"Brevet ou homologation LUXQF2"]
[null,null,null,null,null,null,"Brevet d'Etat ou homologation LUXQF3"]
[null,null,null,null,null,null,"Brevet d'Etat ou homologation LUXQF4"]
[null,null,null,null,null,null,"Brevet d'Etat ou homologation LUXQF5"]
[null,null,null,null,null,null,"Brevet d'Etat ou homologation LUXQF6"]
["Frais d'inscription INAPS ",null,null,null,null,null,"Cycle inférieur"]
[null,null,null,null,null,null,"Cycle moyen"]
[null,null,null,null,null,null,"Cycle supérieur"]
[null,"LUXQF3 - Formation initiale",200]
[null,"LUXQF4 - Formation initiale",200]
[null,"LUXQF5 - Formation initiale",250,null,null,"Fonction brevet candidat"]
[null,"LUXQF6 - Formation initiale",500,null,null,null,"Entraîneur"]
[null,"LUXQF3 - Formation continue",0,null,null,null,"Préparateur en motricité"]
[null,"LUXQF4 - Formation continue",0,null,null,null,"Moniteur Sportif"]
[null,"LUXQF5 - Formation continue",0,null,null,null,"Entraîneur en préparation physique"]
[null,"LUXQF6 - Formation continue",0,null,null,null,"Cadre administratif"]
[null,null,null,null,null,null,"Juges et Arbitres"]
[]
[]
["Fonction club/fédération"]
[null,"Cadre administratif "]
[null,"Chargé de cours"]
[null,"Entraîneur "]
[null,"Entraîneur en préparation physique "]
[null,"Juges et arbitres"]
[null,"Moniteur sportif "]
[null,"Patron de stage"]
[null,"Préparateur en motricité "]
[null,"Autre"]
[]
[]
[]
["Personnel concerné "]
[]
[null,"INAPS "]
[null,"Fédération "]
[null,"Club "]
[null,"COSL"]
[null,"Autre"]
[]
[null,null,null,null,null,null,"Montant actuel "]
[]
["Indice actuel ","en vigueur au 01/01/2025",944.43,null,null,null,null,null,300]
[null,"au 01/01/2026",968.04]

{"sheet":"Demande participation","index":1,"n_rows":109,"n_cols":13,"rows_kept":109,"cut":false,"hidden":false,"merged":[[10,2,10,6],[108,1,110,7],[14,2,14,6],[13,2,13,6],[12,2,12,6],[11,2,11,6],[18,0,18,2],[29,4,29,6],[30,4,30,6],[27,0,27,2],[25,1,25,7],[29,2,29,3],[30,2,30,3],[79,0,79,7],[78,0,78,7],[50,0,50,7],[5,0,5,7],[94,0,94,1],[16,0,16,7],[20,0,20,1],[9,0,9,1],[37,3,37,4],[59,6,62,7],[58,6,58,7],[47,0,47,7],[48,0,48,7],[35,0,35,1],[72,0,72,7],[73,0,73,7],[77,0,77,7],[76,0,76,7],[56,0,56,7],[45,0,45,7],[70,0,70,7],[71,0,71,7],[66,0,66,7],[67,0,67,7],[68,0,68,7],[69,0,69,7],[63,0,63,7],[102,6,104,7],[95,6,95,7],[101,6,101,7],[92,0,92,7],[88,0,88,1],[100,0,100,1],[96,3,98,3],[88,4,88,6],[89,4,89,6],[102,3,104,3],[102,5,104,5],[80,0,80,7],[82,0,82,7],[89,0,89,1],[90,0,90,1],[96,6,98,7],[85,0,85,7],[96,5,98,5],[87,4,87,6]]}
[]
[]
[]
[]
[]
["Demande de reconnaissance et de participation aux frais de formation "]
[]
["Lire, au verso, la démarche à suivre pour soumettre votre demande"]
[]
["Coordonnées personnelles"]
["Nom(s) :",null,"Tel.:"]
["Prénom(s) :",null,"IBAN :"]
["Matricule :",null,"Nom de la banque :"]
["Adresse :",null,"Niveau de certification actuel :"]
["Email :",null,"Fonction :"]
[]
["Description de la formation"]
[]
["Date d'introduction de la demande ( Format JJ/MM/AAAA) "]
[]
["Formation initiale ou continue : "]
[]
[]
["Texte à introduire "]
[]
["Titre de la formation:"]
[]
["Compléter les données et spécificités pour la formation à suivre"]
[]
["Spécifique à une discipline sportive ?",null,"Si oui, nom de la discipline sportive :"]
["Autre spécialisation ?",null,"Si oui, précisez :"]
[]
[]
["Niveau  : "]
[]
["Nombre total d'heures de formation :"]
[]
[null,"Date de début ","Date de fin ","Délai respecté ",null,{"$f":"IF($G$38>=60,\"oui\",\"non \")","v":"non "},{"$f":"_xlfn.DAYS($B$39,$H$19)","v":0},"jours "]
["Date (s):"]
[]
["Lieu :",null,"Montant des frais d’inscriptions :"]
[null,null,"Montant des frais de route :"]
[null,null,"Montant des frais de séjour : cf.loi  "]
[null,null,"Total des frais estimés ",null,null,null,null,{"$f":"SUM(H41:H43)","v":0}]
[]
["Objectifs d'apprentissage et contenu de la formation (joindre un document + le lien du site de formation) :"]
[]
[]
[]
[]
["Motivation de l’inscription à la formation au vu de vos fonctions au service de l’INAPS ou du mouvement sportif"]
[]
["Fonction : ",null,null,null,"Autre (à préciser) "]
["Au service de :",null,null,null,"Autre (à préciser) "]
["Nom de la fédération ou du club :"]
[]
["Remarques / Informations complémentaires"]
[]
[null,null,null,null,null,null,"Signature du demandeur :"]
[]
["Lieu :",null,null,"Date :"]
[]
[]
["Par la présente, je soussigné(e) déclare accepter que mes données à caractère personneé soient traitées conformément aux finalités de reconnaissance et participation aux frais de formation à l'étranger."]
[]
["Démarches à suivre:"]
["1.       Adressez votre demande dûment complétée, datée et signée à l’INAPS par e-mail à l'adresse suivante direction@inaps.etat.lu au minimum 2 mois avant le début de la formation. Mettez en copie le responsable de la fédération , le responsable du club ou du COSL ( si c'est une demande pour une formation initiale) ou le responsable de la fédération concernée ( si c'est une demande pour une formation continue) "]
["Attention :"]
["-           Seules les formations ayant un lien avec vos fonctions au service de l’INAPS ou du mouvement sportif sont éligibles. "]
["-           Les demandes adressées à l’INAPS après ce délai ou après le début de la formation ne sont pas recevables en termes de financement, mais sont recevables en termes de reconnaissance."]
["2.       Si votre demande est acceptée, vous recevrez la confirmation écrite par courrier  que les frais d’inscription à la formation, les frais de route et les frais de séjour pourront être remboursés à la fin de la formation dans les limites suivantes : "]
["-           80% des frais de participation seront remboursés pour une formation initiale par niveau ; "]
["-           50% des frais de participation seront remboursés pour une formation continue pour la prolongation d’une licence INAPS. "]
["Attention : Le montant total maximal de remboursement est fixé à 300 Eur ( au nombre indice 100 du coût de la vie) par formation.  "]
["Plafond actuel : ",{"$f":"('Table de référence'!$I$69/100)*'Table de référence'!$C$69","v":2833.29},"Eur "]
[]
["3.       A la fin de la formation, envoyez les documents suivants à l’INAPS à l'adresse suivante finances@inaps.etat.lu :"]
["-           Un RIB "]
["-           Une copie de l’attestation validant votre participation à la formation / réussite à la formation. "]
["-           Un décompte des dépenses par date"]
["-           Une copie de l’avis de débit / de la quittance de paiement des frais d’inscription, des frais de route et des frais de séjour. "]
[]
["4.       La participation aux frais sera remboursée par virement bancaire dans les meilleurs délais."]
["5.    Ce processus n'inclue pas l'homologation pour les formations initiales.  Une démarche supplémentaire est à faire en consultant le site de l'INAPS."]
[]
["Réservé à l’INAPS",null,null,null,null,null,null,null,null,null,null,"Minimum des 2 plafonds "]
[]
["Délai respecté : ",null,{"$f":"$F$38","v":"non "},null,"Total des frais estimés ",null,null,{"$f":"H44","v":0},null,null,null,"Plafond calculé avec 80% ou 50%",{"$f":"H44*C90","v":{"$error":"#VALUE!"}}]
["Formation inexistante au Luxembourg ",null,"oui",null,"Déduction des frais d'inscription ",null,null,{"$f":"IF('Demande participation'!$B$34='Table de référence'!$B$35,'Table de référence'!$C$35,IF('Demande participation'!$B$34='Table de référence'!$B$36,'Table de référence'!$C$36,IF('Demande participation'!$B$34='Table de référence'!$B$37,'Table de référence'!$C$37,IF('Demande participation'!$B$34='Table de référence'!$B$38,'Table de référence'!$C$38,IF('Demande participation'!$B$34='Table de référence'!$B$39,'Table de référence'!$C$39,IF('Demande participation'!$B$34='Table de référence'!$B$40,'Table de référence'!$C$40,IF('Demande participation'!$B$34='Table de référence'!$B$41,'Table de référence'!$C$41,0)))))))","v":0},null,null,null,"Plafond après frais d'inscription ",{"$f":"H90","v":0}]
["Pourcentage applicable ",null,{"$f":"IF('Demande participation'!$H$21='Table de référence'!$B$26,80%,IF('Demande participation'!$H$21='Table de référence'!$B$27,50%,\"NA\"))","v":"NA"},null,"Plafond après frais d'inscription",null,null,{"$f":"H88-H89","v":0}]
["Montant estimé pour le remboursement",null,{"$f":"IF($M$88>$B$75,$B$75,IF(AND($M$88<$B$75,$M$88<=$H$90),MIN($M$88:$M$89),$M$89))","v":{"$error":"#VALUE!"}}]
[]
["L'engagement financier de l'INAPS ne pourra jamais dépasser le montant estimé et le remboursement par l'INAPS ne pourra jamais dépasser le plafond de 2833,29 eur.  "]
[]
["Reconnaissance formation :"]
[null,null,null,null,null,null,"Signature : Directeur (INAPS)"]
["Favorable",null,null,"Date :"]
[]
["Défavorable "]
[]
["Accord participation financière : "]
[null,null,null,null,null,null,"Signature : Directeur (INAPS)"]
["Favorable ",null,null,"Date : "]
[]
["Défavorable "]
[]
["Référence dossier : "]
[]
["Remarques : "]

{"sheet":"RGD_indemnités","index":2,"n_rows":3,"n_cols":2,"rows_kept":3,"cut":false,"hidden":false,"merged":[]}
["Lien ","Règlement du Gouvernement en conseil du 13 décembre 2024 sur les frais de route et de séjour "]
[]
[null,"https://legilux.public.lu/eli/etat/leg/rgc/2024/12/13/a510/jo"]

{"sheet":"Décompte","index":3,"n_rows":64,"n_cols":12,"rows_kept":64,"cut":false,"hidden":false,"merged":[[14,5,14,10],[5,0,5,5],[6,1,7,10],[11,5,11,10],[12,5,12,10],[13,5,13,10],[15,6,15,10],[23,1,24,10],[26,1,27,1],[26,2,27,3],[26,4,27,9],[26,10,27,10],[16,5,16,10],[39,2,39,3],[50,1,51,9],[29,2,29,3],[30,2,30,3],[31,2,31,3],[32,2,32,3],[33,2,33,3],[34,2,34,3],[35,2,35,3],[36,2,36,3],[37,2,37,3],[38,2,38,3],[52,8,52,9],[58,1,60,10],[61,1,62,10],[62,12,62,13],[63,1,67,10]]}
[]
[]
[]
[]
[null,null,null,null,null,null,null,null,null," "]
[" "]
[null,"Déclaration en remboursement (frais de formation étranger )"]
[]
[]
[null,null,null,null,null,null,null,null,null,null,"Société - G019"]
[null,"Données du candidat"]
[null,"Nom",null,null,null,{"$f":"'Demande participation'!$B$11","v":0}]
[null,"Prénom",null,null,null,{"$f":"'Demande participation'!$B$12","v":0}]
[null,"Matricule",null,null,null,{"$f":"'Demande participation'!$B$13","v":0}]
[null,"Adresse",null,null,null,{"$f":"'Demande participation'!$B$14","v":0}]
[]
[null,"Titre de la formation ",null,null,null,{"$f":"'Demande participation'!$B$26","v":0}]
[null,"Dates de début et de fin ",null,null,null,null,{"$f":"'Demande participation'!$B$39","v":"00:00:00"},null,{"$f":"'Demande participation'!$C$39","v":"00:00:00"}]
[null,"Formation :",null,null,null,{"$f":"'Demande participation'!$H$21","v":0}]
[null,"Référence dossier : "]
[]
[]
[]
[null,"Dépenses à rembourser ( une ligne par dépenses) "]
[]
[]
[null,"N°","Date pièce",null,"Nature de la dépense ",null,null,null,null,null,"Montant en Eur "]
[]
[]
[null,"1"]
[null,"2"]
[null,"3"]
[null,"4"]
[null,"5"]
[null,"6"]
[null,"7"]
[null,"8"]
[null,"9"]
[null,"10"]
[null,"11"]
[null,"12"]
[null,"13"]
[null,"14"]
[null,"15"]
[null,"16"]
[null,"17"]
[null,18]
[null,19]
[null,20]
[null,21]
[null,"Les pièces à l'appui sont jointes en annexe et classées suivant le N° courant émargé ci-dessus"]
[]
[null,null,null,null,null,null,null,null,"Total à rembourser",null,{"$f":"SUM(K30:K50)","v":0}]
[]
[null,"Luxembourg, le ",null,null,null,null,null,null,"Signature de l'ayant droit "]
[]
[]
[]
[null,"Les dépenses ci-dessus dont les pièces à l'appui sont jointes en annexes sont certifiées exactes et non encore remboursées"]
[]
[]
[null,"Luxembourg"]
[null,null,null,null,null,null,null,null,null,null,null," "]
[null,"Le service finances "]